fUSD/lending_fUSD_20260409
["ID","MTS","AMOUNT","RATE_DAILY","PERIOD"]
[420092753,1775669432312,-500.0,8.52e-05,2]
[420092754,1775669432322,-500.0,8.52e-05,2]
[420092755,1775669432331,-500.0,8.52e-05,2]
[420092756,1775669432340,-500.0,8.52e-05,2]
[420092757,1775669432350,-500.0,8.52e-05,2]
[420092758,1775669432359,-500.0,8.52e-05,2]
[420092759,1775669432369,-500.0,8.52e-05,2]
[420092760,1775669432378,-500.0,8.52e-05,2]
[420092761,1775669432388,-500.0,8.52e-05,2]
[420092762,1775669432398,-415.65587587,8.52e-05,2]
[420092763,1775669432407,-500.0,8.52e-05,2]
[420092764,1775669432416,-500.0,8.52e-05,2]
[420092765,1775669432426,-500.0,8.52e-05,2]
[420092766,1775669432436,-500.0,8.52e-05,2]
[420092767,1775669432445,-500.0,8.52e-05,2]
[420092768,1775669432454,-500.0,8.52e-05,2]
[420092769,1775669432464,-500.0,8.52e-05,2]
[420092770,1775669432474,-500.0,8.52e-05,2]
[420092771,1775669432483,-500.0,8.52e-05,2]
[420092772,1775669432493,-500.0,8.52e-05,2]
[420092773,1775669432502,-500.0,8.52e-05,2]
[420092774,1775669432513,-500.0,8.52e-05,2]
[420092775,1775669432522,-500.0,8.52e-05,2]
[420092776,1775669432532,-500.0,8.52e-05,2]
[420092777,1775669432542,-500.0,8.52e-05,2]
[420092778,1775669432552,-500.0,8.52e-05,2]
[420092779,1775669432562,-500.0,8.52e-05,2]
[420092780,1775669432572,-500.0,8.52e-05,2]
[420092781,1775669432581,-500.0,8.52e-05,2]
[420092782,1775669432591,-500.0,8.52e-05,2]
[420092783,1775669432601,-500.0,8.52e-05,2]
[420092784,1775669432610,-500.0,8.52e-05,2]
[420092785,1775669432620,-391.56558758,8.52e-05,2]
[420092786,1775669432631,-500.0,8.52e-05,2]
[420092787,1775669432641,-500.0,8.52e-05,2]
[420092788,1775669432650,-500.0,8.52e-05,2]
[420092789,1775669432660,-500.0,8.52e-05,2]
[420092790,1775669432670,-500.0,8.52e-05,2]
[420092791,1775669432679,-500.0,8.52e-05,2]
[420092792,1775669432688,-500.0,8.52e-05,2]
[420092793,1775669432698,-500.0,8.52e-05,2]
[420092794,1775669432708,-500.0,8.52e-05,2]
[420092795,1775669432717,-500.0,8.52e-05,2]
[420092796,1775669432727,-500.0,8.52e-05,2]
[420092797,1775669432736,-500.0,8.52e-05,2]
[420092798,1775669432746,-500.0,8.52e-05,2]
[420092799,1775669432755,-500.0,8.52e-05,2]
[420092800,1775669432765,-500.0,8.52e-05,2]
[420092801,1775669432775,-500.0,8.52e-05,2]
[420092802,1775669432784,-500.0,8.52e-05,2]
[420092803,1775669432794,-189.15655876,8.52e-05,2]
[420092804,1775669432804,-500.0,8.52e-05,2]
[420092805,1775669432813,-5000.0,8.521e-05,2]
[420092806,1775669432823,-5000.0,8.521e-05,2]
[420092807,1775669432833,-150.0,8.521e-05,2]
[420092808,1775669432843,-155515.42987351,8.521e-05,2]
[420092809,1775669432852,-150.0,8.521e-05,2]
[420092810,1775669432862,-150.0,8.521e-05,2]
[420092811,1775669432872,-500.0,8.528e-05,2]
[420092812,1775669432882,-1213.92,8.528e-05,2]
[420092813,1775669432891,-299.99,8.528e-05,2]
[420092814,1775669432900,-999.99,8.528e-05,2]
[420092815,1775669432909,-500.0,8.528e-05,2]
[420092816,1775669432918,-500.0,8.528e-05,2]
[420092817,1775669432928,-500.0,8.528e-05,2]
[420092818,1775669432938,-258.70622099,8.528e-05,2]
[420092819,1775669432948,-385.41226904,8.528e-05,2]
[420092820,1775669432958,-401.83185099,8.528e-05,2]
[420092821,1775669432968,-500.0,8.528e-05,2]
[420092822,1775669432978,-490.39218329,8.528e-05,2]
[420092823,1775669432987,-500.0,8.528e-05,2]
[420092824,1775669432997,-500.0,8.528e-05,2]
[420092825,1775669433006,-500.0,8.528e-05,2]
[420092826,1775669433016,-500.0,8.528e-05,2]
[420092827,1775669433025,-500.0,8.528e-05,2]
[420092828,1775669433035,-1500000.0,8.529e-05,2]
[420092829,1775669433046,-1000.0,8.531e-05,2]
[420092830,1775669433056,-9999.99,8.531e-05,2]
[420092831,1775669433065,-150.99,8.531e-05,2]
[420092832,1775669433075,-150.99,8.531e-05,2]
[420092833,1775669433085,-9999.99,8.531e-05,2]
[420092834,1775669433095,-152.0,8.532e-05,2]
[420092835,1775669433105,-22724.0955,8.532e-05,2]
[420092836,1775669433116,-2356.4096,8.532e-05,2]
[420092837,1775669433125,-150.0,8.542e-05,2]
[420092838,1775669433135,-150.0,8.556e-05,2]
[420092839,1775669433144,-10000.0,8.613e-05,2]
[420092840,1775669433154,-172.0,8.65e-05,2]
[420092841,1775669433162,-500.0,8.685e-05,2]
[420092842,1775669433172,-200.0,8.7e-05,2]
[420092843,1775669433182,-713.9553866,8.703e-05,2]
[420092844,1775669433192,-2275.64317822,8.735e-05,2]
[420092845,1775669433201,-166.66,8.739e-05,2]
[420092846,1775669433211,-1213.92,8.802e-05,2]
[420092847,1775669433221,-373.0,8.835e-05,2]
[420092848,1775669433232,-150.0,8.9e-05,2]
[420092849,1775669433241,-588.0,8.986e-05,2]
[420092850,1775669433252,-41239.7768152,9e-05,2]
[420092851,1775669433262,-166.66,9.018e-05,2]
[420092852,1775669433272,-1600.0,9.038e-05,2]
[420092853,1775669433282,-500.0,9.063e-05,2]
[420092854,1775669433292,-500.3477331,9.063e-05,2]
[420092855,1775669433302,-500.0,9.063e-05,2]
[420092856,1775669433312,-500.0,9.063e-05,2]
[420092857,1775669433323,-500.0,9.063e-05,2]
[420092858,1775669433333,-500.0,9.063e-05,2]
[420092859,1775669433343,-500.0,9.063e-05,2]
[420092860,1775669433352,-500.25334159,9.063e-05,2]
[420092861,1775669433362,-381.23872411,9.063e-05,2]
[420092862,1775669433372,-500.0,9.063e-05,2]
[420092863,1775669433381,-500.0,9.068e-05,2]
[420092864,1775669433392,-1213.92,9.076e-05,2]
[420092865,1775669433402,-150.0,9.203e-05,2]
[420092866,1775669433411,-2000.0,9.247e-05,2]
[420092867,1775669433421,-166.66,9.297e-05,2]
[420092868,1775669433431,-250.0,9.346e-05,2]
[420092869,1775669433442,-1213.92,9.35e-05,2]
[420092870,1775669433453,-420.0,9.361e-05,2]
[420092871,1775669433463,-420.0,9.361e-05,2]
[420092872,1775669433473,-1680.0,9.361e-05,2]
[420092873,1775669433483,-255.0,9.361e-05,2]
[420092874,1775669433492,-420.0,9.361e-05,2]
[420092875,1775669433502,-5000.0,9.362e-05,2]
[420092876,1775669433511,-193.0,9.362e-05,2]
[420092877,1775669433522,-250.0,9.362e-05,2]
[420092878,1775669433532,-250.0,9.371e-05,2]
[420092879,1775669433543,-5000.0,9.372e-05,2]
[420092880,1775669433552,-500.0,9.425e-05,2]
[420092881,1775669433562,-172.0,9.437e-05,2]
[420092882,1775669433572,-166.66,9.577e-05,2]
[420092883,1775669433581,-180.26,9.589e-05,2]
[420092884,1775669433591,-500.0,9.611e-05,2]
[420092885,1775669433601,-500.0,9.616e-05,2]
[420092886,1775669433611,-1213.92,9.624e-05,2]
[420092887,1775669433621,-167.54354,9.767e-05,2]
[420092888,1775669433631,-166.66,9.856e-05,2]
[420092889,1775669433640,-1213.92,9.898e-05,2]
[420092890,1775669433650,-500.0,9.918e-05,2]
[420092891,1775669433660,-578.20924308,9.949e-05,2]
[420092892,1775669433671,-200.0,9.949e-05,2]
[420092893,1775669433680,-623.58710448,9.949e-05,2]
[420092894,1775669433691,-1235.18214925,9.949e-05,2]
[420092895,1775669433700,-500.0,9.949e-05,2]
[420092896,1775669433711,-151.0,9.949e-05,2]
[420092897,1775669433720,-1500.0,9.949e-05,2]
[420092898,1775669433730,-1500.0,9.949e-05,2]
[420092899,1775669433740,-170.0,9.949e-05,2]
[420092900,1775669433750,-1500.0,9.949e-05,2]
[420092901,1775669433760,-1500.0,9.949e-05,2]
[420092902,1775669433770,-1500.0,9.949e-05,2]
[420092903,1775669433780,-1500.0,9.949e-05,2]
[420092904,1775669433790,-1500.0,9.949e-05,2]
[420092905,1775669433800,-1500.0,9.949e-05,2]
[420092906,1775669433810,-174.61919141,9.949e-05,2]
[420092907,1775669433819,-1120.91593184,9.949e-05,2]
[420092908,1775669433829,-170.0,9.949e-05,2]
[420092909,1775669433839,-170.0,9.949e-05,2]
[420092910,1775669433848,-170.0,9.949e-05,2]
[420092911,1775669433858,-170.0,9.949e-05,2]
[420092912,1775669433868,-170.0,9.949e-05,2]
[420092913,1775669433877,-170.0,9.949e-05,2]
[420092914,1775669433888,-170.0,9.949e-05,2]
[420092915,1775669433897,-170.0,9.949e-05,2]
[420092916,1775669433907,-170.0,9.949e-05,2]
[420092917,1775669433917,-170.0,9.949e-05,2]
[420092918,1775669433927,-170.0,9.949e-05,2]
[420092919,1775669433936,-170.0,9.949e-05,2]
[420092920,1775669433946,-170.0,9.949e-05,2]
[420092921,1775669433956,-170.0,9.949e-05,2]
[420092922,1775669433967,-234.45873266,0.0001,2]
[420092923,1775669433977,-179.80643111,0.0001,2]
[420092924,1775669433986,-151.0,0.0001,2]
[420092925,1775669433996,-151.0,0.0001,2]
[420092926,1775669434005,-151.0,0.0001,2]
[420092927,1775669434016,-151.0,0.0001,2]
[420092928,1775669434027,-200.0,0.0001,2]
[420092929,1775669434036,-151.0,0.0001,2]
[420092930,1775669434046,-500.0,0.0001,2]
[420092931,1775669434056,-151.0,0.0001,2]
[420092932,1775669434066,-500.0,0.0001,2]
[420092933,1775669434077,-151.0,0.0001,2]
[420092934,1775669434086,-500.0,0.0001,2]
[420092935,1775669434096,-151.0,0.0001,2]
[420092936,1775669434105,-151.0,0.0001,2]
[420092937,1775669434115,-500.0,0.0001,2]
[420092938,1775669434125,-151.0,0.0001,2]
[420092939,1775669434136,-500.0,0.0001,2]
[420092940,1775669434146,-151.0,0.0001,2]
[420092941,1775669434155,-500.0,0.0001,2]
[420092942,1775669434165,-151.0,0.0001,2]
[420092943,1775669434174,-500.0,0.0001,2]
[420092944,1775669434184,-151.0,0.0001,2]
[420092945,1775669434194,-500.0,0.0001,2]
[420092946,1775669434204,-151.0,0.0001,2]
[420092947,1775669434213,-500.0,0.0001,2]
[420092948,1775669434223,-151.0,0.0001,2]
[420092949,1775669434232,-500.0,0.0001,2]
[420092950,1775669434242,-500.0,0.0001,2]
[420092951,1775669434251,-500.0,0.0001,2]
[420092952,1775669434261,-500.0,0.0001,2]
[420092953,1775669434271,-166.73180751,0.0001,2]
[420092954,1775669434280,-500.0,0.0001,2]
[420092955,1775669434290,-151.0,0.0001,2]
[420092956,1775669434301,-500.0,0.0001,2]
[420092957,1775669434311,-151.0,0.0001,2]
[420092958,1775669434321,-151.0,0.0001,2]
[420092959,1775669434331,-151.0,0.0001,2]
[420092960,1775669434341,-2000.0,0.0001,2]
[420092961,1775669434350,-2000.0,0.0001,2]
[420092962,1775669434360,-2000.0,0.0001,2]
[420092963,1775669434369,-2000.0,0.0001,2]
[420092964,1775669434379,-2000.0,0.0001,2]
[420092965,1775669434390,-2000.0,0.0001,2]
[420092966,1775669434399,-500.0,0.0001,2]
[420092967,1775669434409,-500.0,0.0001,2]
[420092968,1775669434419,-500.0,0.0001,2]
[420092969,1775669434429,-500.0,0.0001,2]
[420092970,1775669434438,-500.0,0.0001,2]
[420092971,1775669434448,-500.0,0.0001,2]
[420092972,1775669434458,-500.0,0.0001,2]
[420092973,1775669434468,-500.0,0.0001,2]
[420092974,1775669434478,-500.0,0.0001,2]
[420092975,1775669434488,-500.0,0.0001,2]
[420092976,1775669434498,-500.0,0.0001,2]
[420092977,1775669434507,-500.0,0.0001,2]
[420092978,1775669434517,-500.0,0.0001,2]
[420092979,1775669434527,-500.0,0.0001,2]
[420092980,1775669434537,-500.0,0.0001,2]
[420092981,1775669434547,-500.0,0.0001,2]
[420092982,1775669434557,-500.0,0.0001,2]
[420092983,1775669434566,-500.0,0.0001,2]
[420092984,1775669434576,-500.0,0.0001,2]
[420092985,1775669434587,-500.0,0.0001,2]
[420092986,1775669434597,-500.0,0.0001,2]
[420092987,1775669434607,-500.0,0.0001,2]
[420092988,1775669434616,-500.0,0.0001,2]
[420092989,1775669434626,-500.0,0.0001,2]
[420092990,1775669434636,-500.0,0.0001,2]
[420092991,1775669434646,-500.0,0.0001,2]
[420092992,1775669434655,-500.0,0.0001,2]
[420092993,1775669434665,-500.0,0.0001,2]
[420092994,1775669434674,-500.0,0.0001,2]
[420092995,1775669434684,-500.0,0.0001,2]
[420092996,1775669434694,-500.0,0.0001,2]
[420092997,1775669434703,-500.0,0.0001,2]
[420092998,1775669434712,-500.0,0.0001,2]
[420092999,1775669434722,-500.0,0.0001,2]
[420093000,1775669434733,-500.0,0.0001,2]
[420093001,1775669434743,-500.0,0.0001,2]
[420093002,1775669434753,-500.0,0.0001,2]
[420093003,1775669434764,-500.0,0.0001,2]
[420093004,1775669434774,-500.0,0.0001,2]
[420093005,1775669434783,-500.0,0.0001,2]
[420093006,1775669434793,-500.0,0.0001,2]
[420093007,1775669434803,-500.0,0.0001,2]
[420093008,1775669434813,-500.0,0.0001,2]
[420093009,1775669434822,-500.0,0.0001,2]
[420093010,1775669434832,-500.0,0.0001,2]
[420093011,1775669434843,-500.0,0.0001,2]
[420093012,1775669434852,-500.0,0.0001,2]
[420093013,1775669434863,-500.0,0.0001,2]
[420093014,1775669434874,-500.0,0.0001,2]
[420093015,1775669434884,-500.0,0.0001,2]
[420093016,1775669434893,-500.0,0.0001,2]
[420093017,1775669434903,-500.0,0.00010004,2]
[420093018,1775669434913,-151.0,0.00010004,2]
[420093019,1775669434923,-1600.0,0.00010043,2]
[420093020,1775669434933,-500.0,0.00010059,2]
[420093021,1775669434943,-151.0,0.00010059,2]
[420093022,1775669434952,-500.0,0.00010114,2]
[420093023,1775669434962,-151.0,0.00010114,2]
[420093024,1775669434972,-500.0,0.00010169,2]
[420093025,1775669434981,-151.0,0.00010169,2]
[420093026,1775669434991,-1213.92,0.00010172,2]
[420093027,1775669435000,-500.0,0.00010224,2]
[420093028,1775669435011,-151.0,0.00010224,2]
[420093029,1775669435021,-2000.0,0.00010274,2]
[420093030,1775669435031,-500.0,0.00010279,2]
[420093031,1775669435041,-151.0,0.00010279,2]
[420093032,1775669435051,-587.0,0.00010297,2]
[420093033,1775669435059,-587.0,0.00010297,2]
[420093034,1775669435069,-2351.0,0.00010297,2]
[420093035,1775669435079,-433.0,0.00010297,2]
[420093036,1775669435090,-587.0,0.00010297,2]
[420093037,1775669435100,-172.3899,0.000103,2]
[420093038,1775669435109,-500.0,0.00010334,2]
[420093039,1775669435119,-151.0,0.00010334,2]
[420093040,1775669435128,-500.0,0.00010389,2]
[420093041,1775669435138,-296.68813754,0.00010389,2]
[420093042,1775669435148,-500.0,0.00010444,2]
[420093043,1775669435158,-1213.92,0.00010446,2]
[420093044,1775669435168,-200.0,0.00010497,2]
[420093045,1775669435178,-1280.88388878,0.00010497,2]
[420093046,1775669435187,-181.08010149,0.00010497,2]
[420093047,1775669435196,-500.0,0.00010499,2]
[420093048,1775669435206,-201.60184993,0.00010548,2]
[420093049,1775669435216,-500.0,0.00010554,2]
[420093050,1775669435225,-500.0,0.00010609,2]
[420093051,1775669435235,-500.0,0.00010658,2]
[420093052,1775669435245,-500.0,0.00010664,2]
[420093053,1775669435255,-5289.94335797,0.000107,2]
[420093054,1775669435266,-500.0,0.00010719,2]
[420093055,1775669435276,-1213.92,0.0001072,2]
[420093056,1775669435286,-911.0,0.0001085,5]
[420093057,1775669435296,-937.0,0.00010859,5]
[420093058,1775669435306,-1603.89,0.00010876,2]
[420093059,1775669435316,-536.64157914,0.00010959,2]
[420093060,1775669435326,-150.0,0.00010959,2]
[420093061,1775669435335,-1989.74,0.00010959,2]
[420093062,1775669435344,-180.26,0.00010959,2]
[420093063,1775669435353,-150.0,0.00010959,2]
[420093064,1775669435362,-1213.92,0.00010994,2]
[420093065,1775669435372,-1328.27659266,0.00011045,2]
[420093066,1775669435381,-200.0,0.00011045,2]
[420093067,1775669435391,-187.78006525,0.00011045,2]
[420093068,1775669435401,-1600.0,0.00011047,2]
[420093069,1775669435410,-29915.09666126,0.00011099,2]
[420093070,1775669435420,-29915.09666124,0.00011099,2]
[420093071,1775669435429,-29915.09666124,0.00011099,2]
[420093072,1775669435439,-29915.09666124,0.00011099,2]
[420093073,1775669435449,-151.0,0.00011099,2]
[420093074,1775669435459,-151.0,0.00011099,2]
[420093075,1775669435468,-151.0,0.00011099,2]
[420093076,1775669435478,-151.0,0.00011099,2]
[420093077,1775669435487,-754.935305,0.00011099,2]
[420093078,1775669435496,-754.935305,0.00011099,2]
[420093079,1775669435506,-754.935305,0.00011099,2]
[420093080,1775669435516,-754.935305,0.00011099,2]
[420093081,1775669435526,-522.20468851,0.00011211,2]
[420093082,1775669435535,-150.0,0.00011233,2]
[420093083,1775669435546,-1213.92,0.00011268,2]
[420093084,1775669435556,-2000.0,0.00011301,2]
[420093085,1775669435565,-249.32662127,0.00011312,2]
[420093086,1775669435575,-823.0,0.00011327,2]
[420093087,1775669435585,-322.0,0.00011327,2]
[420093088,1775669435596,-3292.0,0.00011327,2]
[420093089,1775669435606,-736.0,0.00011327,2]
[420093090,1775669435617,-493.0,0.00011327,2]
[420093091,1775669435627,-6901.79,0.00011507,2]
[420093092,1775669435636,-4327.75,0.00011507,2]
[420093093,1775669435647,-1213.94984954,0.00011542,2]
[420093094,1775669435657,-1377.42282659,0.00011593,2]
[420093095,1775669435667,-200.0,0.00011593,2]
[420093096,1775669435978,-194.72792766,0.00011593,2]
[420093097,1775669435987,-201.677878,0.0001165,2]
[420093098,1775669435997,-198.122,0.000117,2]
[420093099,1775669436007,-29915.09666124,0.00011745,2]
[420093100,1775669436017,-150.0,0.00011834,2]
[420093101,1775669436028,-448.36083595,0.00011908,2]
[420093102,1775669436037,-1600.0,0.00012051,2]
[420093103,1775669436047,-45025.43,0.00012055,2]
[420093104,1775669436058,-1428.38747117,0.00012141,2]
[420093105,1775669436068,-200.0,0.00012141,2]
[420093106,1775669436077,-201.93286099,0.00012141,2]
[420093107,1775669436087,-431.29407897,0.00012156,2]
[420093108,1775669436097,-150.00000001,0.00012182,2]
[420093109,1775669436107,-2000.0,0.00012329,2]
[420093110,1775669436116,-180.26,0.00012329,2]
[420093111,1775669436126,-10000.0,0.00012389,2]
[420093112,1775669436135,-976.0,0.00012459,2]
[420093113,1775669436145,-1152.0,0.0001246,2]
[420093114,1775669436155,-3742.0,0.0001246,2]
[420093115,1775669436164,-946.0,0.00012489,5]
[420093116,1775669436172,-475.76,0.00012511,2]
[420093117,1775669436182,-29915.09666124,0.00012576,2]
[420093118,1775669436194,-160.0,0.00012582,2]
[420093119,1775669436204,-475.76,0.00012609,2]
[420093120,1775669436213,-151.0,0.00012627,2]
[420093121,1775669436222,-151.0,0.00012627,2]
[420093122,1775669436232,-151.0,0.00012627,2]
[420093123,1775669436242,-151.0,0.00012627,2]
[420093124,1775669436252,-151.0,0.00012627,2]
[420093125,1775669436261,-151.0,0.00012627,2]
[420093126,1775669436272,-475.76,0.00012658,2]
[420093127,1775669436282,-390.68773847,0.00012668,2]
[420093128,1775669436292,-599.60298507,0.00012688,2]
[420093129,1775669436302,-646.65982734,0.00012688,2]
[420093130,1775669436313,-1481.23780761,0.00012689,2]
[420093131,1775669436338,-200.0,0.00012689,2]
[420093132,1775669436349,-209.40437684,0.00012689,2]
[420093133,1775669436358,-475.76,0.00012707,2]
[420093134,1775669436369,-475.8048941,0.00012914,2]
[420093135,1775669436379,-317.62579703,0.00012978,2]
[420093136,1775669436389,-250.0,0.00013,2]
[420093137,1775669436399,-501.0,0.000131,2]
[420093138,1775669436409,-6022.0,0.00013112,2]
[420093139,1775669436419,-1053.585,0.00013112,2]
[420093140,1775669436429,-1989.74,0.00013122,2]
[420093141,1775669436438,-227.695,0.000132,2]
[420093142,1775669436448,-200.0,0.00013237,2]
[420093143,1775669436458,-217.15233878,0.00013237,2]
[420093144,1775669436468,-5000.0,0.00013248,2]
[420093145,1775669436478,-253.29,0.00013387,2]
[420093146,1775669436488,-29915.09666124,0.00013407,2]
[420093147,1775669436498,-167.54354,0.00013407,2]
[420093148,1775669436508,-151.0,0.0001341,2]
[420093149,1775669436519,-151.0,0.0001341,2]
[420093150,1775669436529,-151.0,0.0001341,2]
[420093151,1775669436539,-151.0,0.0001341,2]
[420093152,1775669436550,-980.868275,0.0001341,2]
[420093153,1775669436560,-980.868275,0.0001341,2]
[420093154,1775669436570,-980.868275,0.0001341,2]
[420093155,1775669436581,-980.868275,0.0001341,2]
[420093156,1775669436591,-3240.0,0.00013425,2]
[420093157,1775669436601,-1302.57,0.000135,2]
[420093158,1775669436612,-899.43,0.000135,2]
[420093159,1775669436623,-599.87,0.000135,2]
[420093160,1775669436633,-1375.06,0.000135,2]
[420093161,1775669436642,-1270.24,0.000135,2]
[420093162,1775669436652,-348.58,0.000135,2]
[420093163,1775669436663,-152.1622225,0.00013599,2]
[420093164,1775669436673,-8403.39878338,0.00013599,2]
[420093165,1775669436683,-588.60805242,0.00013599,2]
[420093166,1775669436692,-1622.92709693,0.00013599,2]
[420093167,1775669436702,-238.38,0.00013646,2]
[420093168,1775669436712,-246.25716228,0.00013673,2]
[420093169,1775669436721,-500.0,0.00013673,2]
[420093170,1775669436731,-500.0,0.00013673,2]
[420093171,1775669436742,-500.0,0.00013673,2]
[420093172,1775669436752,-500.0,0.00013673,2]
[420093173,1775669436764,-500.0,0.00013673,2]
[420093174,1775669436775,-500.0,0.00013673,2]
[420093175,1775669436785,-169.66281329,0.00013673,2]
[420093176,1775669436796,-500.0,0.00013673,2]
[420093177,1775669436806,-754.935305,0.00013673,2]
[420093178,1775669436817,-754.935305,0.00013673,2]
[420093179,1775669436827,-754.935305,0.00013673,2]
[420093180,1775669436837,-754.935305,0.00013673,2]
[420093181,1775669436846,-2138.0,0.00013699,2]
[420093182,1775669436856,-166.66,0.00013699,2]
[420093183,1775669436866,-200.0,0.00013699,2]
[420093184,1775669436876,-151.0,0.00013699,2]
[420093185,1775669436886,-163.758899,0.00013699,2]
[420093186,1775669436896,-151.0,0.00013699,2]
[420093187,1775669436906,-151.0,0.00013699,2]
[420093188,1775669436916,-151.0,0.00013699,2]
[420093189,1775669436926,-151.0,0.00013699,2]
[420093190,1775669436935,-151.0,0.00013699,2]
[420093191,1775669436944,-151.0,0.00013699,2]
[420093192,1775669436954,-151.0,0.00013699,2]
[420093193,1775669436964,-151.0,0.00013699,2]
[420093194,1775669436974,-151.0,0.00013699,2]
[420093195,1775669436984,-151.0,0.00013699,2]
[420093196,1775669436994,-151.0,0.00013699,2]
[420093197,1775669437005,-151.0,0.00013699,2]
[420093198,1775669437015,-151.0,0.00013699,2]
[420093199,1775669437025,-151.0,0.00013699,2]
[420093200,1775669437035,-151.0,0.00013699,2]
[420093201,1775669437044,-151.0,0.00013699,2]
[420093202,1775669437054,-262.400949,0.00013699,2]
[420093203,1775669437063,-151.0,0.00013699,2]
[420093204,1775669437073,-151.0,0.00013699,2]
[420093205,1775669437083,-151.0,0.00013699,2]
[420093206,1775669437092,-151.0,0.00013699,2]
[420093207,1775669437102,-151.0,0.00013699,2]
[420093208,1775669437112,-151.0,0.00013699,2]
[420093209,1775669437121,-151.0,0.00013699,2]
[420093210,1775669437130,-151.0,0.00013699,2]
[420093211,1775669437139,-151.0,0.00013699,2]
[420093212,1775669437149,-151.0,0.00013699,2]
[420093213,1775669437159,-151.0,0.00013699,2]
[420093214,1775669437170,-151.0,0.00013699,2]
[420093215,1775669437180,-151.0,0.00013699,2]
[420093216,1775669437189,-151.0,0.00013699,2]
[420093217,1775669437199,-151.0,0.00013699,2]
[420093218,1775669437209,-151.0,0.00013699,2]
[420093219,1775669437219,-151.0,0.00013699,2]
[420093220,1775669437228,-151.0,0.00013699,2]
[420093221,1775669437238,-151.0,0.00013699,2]
[420093222,1775669437247,-151.0,0.00013699,2]
[420093223,1775669437257,-151.0,0.00013699,2]
[420093224,1775669437267,-151.0,0.00013699,2]
[420093225,1775669437276,-151.0,0.00013699,2]
[420093226,1775669437286,-151.0,0.00013699,2]
[420093227,1775669437295,-151.0,0.00013699,2]
[420093228,1775669437305,-151.0,0.00013699,2]
[420093229,1775669437315,-151.0,0.00013699,2]
[420093230,1775669437324,-151.0,0.00013699,2]
[420093231,1775669437334,-151.0,0.00013699,2]
[420093232,1775669437344,-153.102386,0.00013699,2]
[420093233,1775669437354,-170.943257,0.00013699,2]
[420093234,1775669437364,-170.943257,0.00013699,2]
[420093235,1775669437374,-170.943257,0.00013699,2]
[420093236,1775669437384,-298.034332,0.00013699,2]
[420093237,1775669437394,-170.943257,0.00013699,2]
[420093238,1775669437404,-298.034332,0.00013699,2]
[420093239,1775669437413,-151.0,0.00013699,2]
[420093240,1775669437423,-298.034332,0.00013699,2]
[420093241,1775669437433,-155.753542,0.00013699,2]
[420093242,1775669437443,-151.0,0.00013699,2]
[420093243,1775669437453,-298.034332,0.00013699,2]
[420093244,1775669437463,-221.927431,0.00013699,2]
[420093245,1775669437472,-158.663675,0.00013699,2]
[420093246,1775669437482,-151.0,0.00013699,2]
[420093247,1775669437492,-156.431738,0.00013699,2]
[420093248,1775669437502,-163.489759,0.00013699,2]
[420093249,1775669437512,-163.489759,0.00013699,2]
[420093251,1775669437522,-151.0,0.00013699,2]
[420093252,1775669437532,-151.0,0.00013699,2]
[420093253,1775669437542,-151.0,0.00013699,2]